[Event "44th Chess Olympiad Women 2022"]
[Site "Chennai"]
[Date "2022.08.08"]
[Round "10.60"]
[White "La Fleur, Zara"]
[Black "Roberts, Tallulah"]
[Result "1-0"]
[WhiteElo "1513"]
[BlackElo "1536"]
[Annotator "NA RC"]
[PlyCount "69"]
[EventDate "2022.??.??"]
[TimeControl "60"]

1. e4 {[%emt 0:00:05]} e6 {[%emt 0:00:01]} 2. d4 {[%emt 0:00:11]} d5 {[%emt 0:
00:00]} 3. Nd2 {[%emt 0:00:13]} c5 {[%emt 0:01:29]} 4. Ngf3 {[%emt 0:00:47]}
Nc6 {[%emt 0:02:52]} 5. c3 {[%emt 0:14:49]} dxe4 {[%emt 0:06:10]} 6. Nxe4 {
[%emt 0:00:19]} cxd4 {[%emt 0:01:40]} 7. cxd4 {[%emt 0:05:59]} Bb4+ {[%emt 0:
00:00]} 8. Bd2 {[%emt 0:03:49]} Bxd2+ {[%emt 0:05:37]} 9. Qxd2 {[%emt 0:00:24]}
Nge7 {[%emt 0:01:19]} 10. Bb5 {[%emt 0:05:29]} O-O {[%emt 0:01:44]} 11. O-O {
[%emt 0:01:19]} a6 {[%emt 0:02:26]} 12. Ba4 {[%emt 0:04:19]} b5 {[%emt 0:09:45]
} 13. Bc2 {[%emt 0:05:22]} h6 {[%emt 0:09:39]} 14. Rac1 {[%emt 0:09:19]} Nd5 {
[%emt 0:01:56]} 15. Bb1 {[%emt 0:03:20]} Nce7 {[%emt 0:07:57]} 16. Nc5 {
[%emt 0:12:08]} Qd6 {[%emt 0:09:01]} 17. Qd3 {[%emt 0:02:12]} g6 {[%emt 0:00:
00]} 18. Ne5 {[%emt 0:08:23]} Rb8 {[%emt 0:08:56]} 19. Qd2 {[%emt 0:03:00]} Kg7
{[%emt 0:01:16]} 20. Rfd1 {[%emt 0:08:07]} Nf6 {[%emt 0:02:39]} 21. Qf4 {
[%emt 0:01:42]} g5 {[%emt 0:05:48]} 22. Qf3 {[%emt 0:01:07]} Ng6 {[%emt 0:00:
00]} 23. Qxf6+ {[%emt 0:00:41]} Kxf6 {[%emt 0:01:27]} 24. Ne4+ {[%emt 0:00:07]}
Ke7 {[%emt 0:00:30]} 25. Nxd6 {[%emt 0:00:07]} Kxd6 {[%emt 0:00:26]} 26. Rc6+ {
[%emt 0:01:01]} Ke7 {[%emt 0:02:59]} 27. Bxg6 {[%emt 0:00:40]} fxg6 {[%emt 0:
00:00]} 28. Nxg6+ {[%emt 0:00:07]} Kd7 {[%emt 0:01:56]} 29. Rdc1 {[%emt 0:00:
00]} Rg8 {[%emt 0:00:41]} 30. Ne5+ {[%emt 0:00:48]} Ke7 {[%emt 0:00:46]} 31.
Rc7+ {[%emt 0:00:24]} Kf8 {[%emt 0:00:33]} 32. Rf7+ {[%emt 0:01:00]} Ke8 {
[%emt 0:00:01]} 33. Rcc7 {[%emt 0:00:21]} Ra8 {[%emt 0:00:57]} 34. Rce7+ {
[%emt 0:00:10]} Kd8 {[%emt 0:00:01]} 35. Nc6# {[%emt 0:00:07]} 1-0

[Event "44th Chess Olympiad Women 2022"]
[Site "Chennai"]
[Date "2022.08.08"]
[Round "10.61"]
[White "Yavo Tchetche, Marie"]
[Black "Saraci, Rinesa"]
[Result "1/2-1/2"]
[WhiteElo "1313"]
[BlackElo "1494"]
[Annotator "NA RC"]
[PlyCount "121"]
[EventDate "2022.??.??"]
[TimeControl "60"]

1. d4 {[%emt 0:00:39]} Nf6 {[%emt 0:00:14]} 2. c4 {[%emt 0:00:44]} g6 {[%emt 0:
00:00]} 3. Nc3 {[%emt 0:01:30]} d6 {[%emt 0:01:11]} 4. Nf3 {[%emt 0:01:15]} Bg7
{[%emt 0:00:56]} 5. e4 {[%emt 0:01:32]} O-O {[%emt 0:02:06]} 6. Be2 {[%emt 0:
00:00]} Nbd7 {[%emt 0:01:13]} 7. O-O {[%emt 0:02:41]} b6 {[%emt 0:02:11]} 8.
Bg5 {[%emt 0:02:41]} Bb7 {[%emt 0:01:31]} 9. Qc2 {[%emt 0:02:03]} Re8 {[%emt 0:
00:00]} 10. Rad1 {[%emt 0:01:20]} Qc8 {[%emt 0:03:03]} 11. e5 {[%emt 0:05:40]}
dxe5 {[%emt 0:02:54]} 12. Nxe5 {[%emt 0:01:12]} Nxe5 {[%emt 0:00:56]} 13. dxe5
{[%emt 0:01:02]} Ng4 {[%emt 0:01:15]} 14. Nd5 {[%emt 0:02:18]} Bxd5 {[%emt 0:
00:00]} 15. Rxd5 {[%emt 0:02:45]} Nxe5 {[%emt 0:02:46]} 16. Rfd1 {[%emt 0:00:
00]} f6 {[%emt 0:10:48]} 17. Bf4 {[%emt 0:01:18]} Nf7 {[%emt 0:01:32]} 18. Bf3
{[%emt 0:01:35]} Rb8 {[%emt 0:02:04]} 19. Rd7 {[%emt 0:02:05]} Nd6 {[%emt 0:00:
00]} 20. Bc6 {[%emt 0:01:31]} Bf8 {[%emt 0:02:09]} 21. c5 {[%emt 0:04:32]} bxc5
{[%emt 0:02:49]} 22. Qxc5 {[%emt 0:01:17]} Rd8 {[%emt 0:00:39]} 23. Rxd8 {
[%emt 0:02:59]} Qxd8 {[%emt 0:00:03]} 24. Bd5+ {[%emt 0:01:07]} Kh8 {[%emt 0:
00:00]} 25. Bb3 {[%emt 0:05:45]} a6 {[%emt 0:05:05]} 26. h4 {[%emt 0:01:46]}
Rb5 {[%emt 0:06:58]} 27. Qe3 {[%emt 0:02:58]} Qc8 {[%emt 0:07:34]} 28. Bxd6 {
[%emt 0:03:44]} cxd6 {[%emt 0:01:14]} 29. Rc1 {[%emt 0:01:01]} Qf5 {[%emt 0:00:
00]} 30. Be6 {[%emt 0:07:00]} Qe5 {[%emt 0:01:37]} 31. Rc8 {[%emt 0:05:04]} Kg7
{[%emt 0:04:19]} 32. Qxe5 {[%emt 0:04:43]} Rxe5 {[%emt 0:00:24]} 33. Bc4 {
[%emt 0:01:14]} a5 {[%emt 0:01:10]} 34. Ra8 {[%emt 0:02:30]} Rc5 {[%emt 0:00:
00]} 35. Bb3 {[%emt 0:03:29]} h6 {[%emt 0:04:54]} 36. Kf1 {[%emt 0:02:57]} g5 {
[%emt 0:02:31]} 37. hxg5 {[%emt 0:02:13]} hxg5 {[%emt 0:04:41]} 38. Ke2 {
[%emt 0:02:06]} d5 {[%emt 0:00:54]} 39. Kd3 {[%emt 0:02:04]} e5 {[%emt 0:02:28]
} 40. Ra7+ {[%emt 0:01:26]} Kg6 {[%emt 0:00:59]} 41. Rd7 {[%emt 0:30:30]} d4 {
[%emt 0:30:33]} 42. Rd5 {[%emt 0:02:02]} Rxd5 {[%emt 0:04:06]} 43. Bxd5 {
[%emt 0:00:32]} g4 {[%emt 0:01:45]} 44. f3 {[%emt 0:03:44]} gxf3 {[%emt 0:00:
00]} 45. gxf3 {[%emt 0:00:00]} Kf5 {[%emt 0:00:00]} 46. Bc6 {[%emt 0:00:00]}
Kf4 {[%emt 0:00:00]} 47. a3 {[%emt 0:00:00]} f5 {[%emt 0:00:00]} 48. Bd5 {
[%emt 0:00:00]} Kg3 {[%emt 0:00:00]} 49. Bc6 {[%emt 0:00:00]} Kf2 {[%emt 0:00:
00]} 50. Bd7 {[%emt 0:00:00]} Kxf3 {[%emt 0:00:00]} 51. Bxf5 {[%emt 0:00:00]}
Kf2 {[%emt 0:00:00]} 52. a4 {[%emt 0:00:00]} Ke1 {[%emt 0:00:00]} 53. b3 {
[%emt 0:00:00]} Kd1 {[%emt 0:00:00]} 54. Be6 {[%emt 0:00:00]} Kc1 {[%emt 0:00:
00]} 55. Bd5 {[%emt 0:00:00]} Kb2 {[%emt 0:00:00]} 56. Bc4 {[%emt 0:00:00]} Bb4
{[%emt 0:00:00]} 57. Bd5 {[%emt 0:00:00]} Bc3 {[%emt 0:00:00]} 58. Bc4 {
[%emt 0:00:00]} e4+ {[%emt 0:00:00]} 59. Kxe4 {[%emt 0:00:00]} Kc2 {[%emt 0:00:
00]} 60. Bb5 {[%emt 0:00:00]} Kxb3 {[%emt 0:00:00]} 61. Kd3 {[%emt 0:00:00]}
1/2-1/2

[Event "44th Chess Olympiad Women 2022"]
[Site "Chennai"]
[Date "2022.08.08"]
[Round "10.63"]
[White "Al Balushi, Mariya"]
[Black "Makda Araya Fessehaye"]
[Result "1-0"]
[WhiteElo "1660"]
[BlackElo "1242"]
[Annotator "NA RC"]
[PlyCount "113"]
[EventDate "2022.??.??"]
[TimeControl "60"]

1. e4 {[%emt 0:00:01]} e5 {[%emt 0:00:09]} 2. Nf3 {[%emt 0:00:07]} Nc6 {
[%emt 0:00:13]} 3. d4 {[%emt 0:01:03]} d6 {[%emt 0:02:43]} 4. d5 {[%emt 0:00:
00]} Nce7 {[%emt 0:01:24]} 5. Nc3 {[%emt 0:03:27]} c6 {[%emt 0:01:15]} 6. Be3 {
[%emt 0:04:08]} Nf6 {[%emt 0:06:51]} 7. h3 {[%emt 0:01:08]} a6 {[%emt 0:01:26]}
8. Be2 {[%emt 0:01:18]} cxd5 {[%emt 0:04:54]} 9. exd5 {[%emt 0:00:36]} Nf5 {
[%emt 0:01:16]} 10. Bd2 {[%emt 0:04:42]} Be7 {[%emt 0:00:44]} 11. O-O {[%emt 0:
00:00]} Bd7 {[%emt 0:04:38]} 12. a4 {[%emt 0:01:29]} Qb6 {[%emt 0:01:43]} 13.
b3 {[%emt 0:01:27]} e4 {[%emt 0:02:30]} 14. Nh2 {[%emt 0:05:23]} e3 {[%emt 0:
00:00]} 15. Be1 {[%emt 0:00:58]} Qc5 {[%emt 0:06:48]} 16. Qd3 {[%emt 0:03:26]}
Rc8 {[%emt 0:02:21]} 17. Ng4 {[%emt 0:05:41]} exf2+ {[%emt 0:05:37]} 18. Rxf2 {
[%emt 0:07:26]} Nh4 {[%emt 0:09:00]} 19. Rc1 {[%emt 0:13:19]} O-O {[%emt 0:00:
00]} 20. Nxf6+ {[%emt 0:02:37]} Bxf6 {[%emt 0:00:47]} 21. Ne4 {[%emt 0:00:12]}
Qb6 {[%emt 0:05:36]} 22. Nxf6+ {[%emt 0:01:33]} gxf6 {[%emt 0:01:09]} 23. Kh1 {
[%emt 0:02:46]} f5 {[%emt 0:02:10]} 24. Rf1 {[%emt 0:04:13]} Ng6 {[%emt 0:00:
00]} 25. Qg3 {[%emt 0:01:36]} Rce8 {[%emt 0:03:09]} 26. Bd3 {[%emt 0:01:01]}
Qe3 {[%emt 0:02:22]} 27. Bf2 {[%emt 0:02:57]} Qf4 {[%emt 0:06:18]} 28. Rce1 {
[%emt 0:05:45]} Qxg3 {[%emt 0:02:26]} 29. Bxg3 {[%emt 0:00:18]} f4 {[%emt 0:00:
00]} 30. Rxe8 {[%emt 0:01:07]} Rxe8 {[%emt 0:01:15]} 31. Bxf4 {[%emt 0:00:19]}
Nxf4 {[%emt 0:02:09]} 32. Rxf4 {[%emt 0:00:11]} Re5 {[%emt 0:01:16]} 33. Rb4 {
[%emt 0:03:22]} Rxd5 {[%emt 0:04:31]} 34. Rxb7 {[%emt 0:00:12]} Bf5 {[%emt 0:
00:00]} 35. Bxf5 {[%emt 0:00:40]} Rxf5 {[%emt 0:00:30]} 36. Rb6 {[%emt 0:00:35]
} Rf1+ {[%emt 0:00:32]} 37. Kh2 {[%emt 0:00:07]} Rd1 {[%emt 0:00:03]} 38. Rxa6
{[%emt 0:00:13]} d5 {[%emt 0:00:44]} 39. b4 {[%emt 0:00:20]} d4 {[%emt 0:00:50]
} 40. Rd6 {[%emt 0:00:39]} Kf8 {[%emt 0:00:13]} 41. a5 {[%emt 0:30:15]} Ke7 {
[%emt 0:31:23]} 42. Rc6 {[%emt 0:00:55]} Rc1 {[%emt 0:01:55]} 43. b5 {[%emt 0:
00:00]} Kd7 {[%emt 0:02:04]} 44. a6 {[%emt 0:01:46]} d3 {[%emt 0:04:33]} 45.
cxd3 {[%emt 0:00:11]} Rxc6 {[%emt 0:00:14]} 46. bxc6+ {[%emt 0:00:03]} Kxc6 {
[%emt 0:00:45]} 47. Kg3 {[%emt 0:00:11]} Kb6 {[%emt 0:00:46]} 48. Kf4 {[%emt 0:
00:00]} Kxa6 {[%emt 0:01:13]} 49. Kf5 {[%emt 0:00:04]} Kb6 {[%emt 0:00:02]} 50.
g4 {[%emt 0:00:10]} Kc6 {[%emt 0:00:00]} 51. Kf6 {[%emt 0:00:00]} Kd6 {[%emt 0:
00:00]} 52. g5 {[%emt 0:00:00]} Kd5 {[%emt 0:00:00]} 53. h4 {[%emt 0:00:00]}
Kd4 {[%emt 0:00:00]} 54. Kxf7 {[%emt 0:00:00]} Kxd3 {[%emt 0:00:00]} 55. h5 {
[%emt 0:00:00]} Ke4 {[%emt 0:00:00]} 56. g6 {[%emt 0:00:00]} hxg6 {[%emt 0:00:
00]} 57. hxg6 {[%emt 0:00:00]} 1-0

[Event "44th Chess Olympiad Women 2022"]
[Site "Chennai"]
[Date "2022.08.08"]
[Round "10.64"]
[White "Tchouateu Tankeu Stephanie"]
[Black "Jambo, Linda"]
[Result "0-1"]
[WhiteElo "1280"]
[BlackElo "1426"]
[Annotator "NA RC"]
[PlyCount "100"]
[EventDate "2022.??.??"]
[TimeControl "60"]

1. d4 {[%emt 0:00:05]} d5 {[%emt 0:00:06]} 2. c4 {[%emt 0:00:06]} Nf6 {[%emt 0:
00:00]} 3. Nc3 {[%emt 0:00:10]} e6 {[%emt 0:00:22]} 4. e3 {[%emt 0:00:27]} Bb4
{[%emt 0:00:12]} 5. Bd2 {[%emt 0:00:23]} b6 {[%emt 0:00:38]} 6. a3 {[%emt 0:00:
00]} Bxc3 {[%emt 0:00:34]} 7. Bxc3 {[%emt 0:00:12]} Ne4 {[%emt 0:00:38]} 8. Qc2
{[%emt 0:02:37]} Bb7 {[%emt 0:00:39]} 9. Bd3 {[%emt 0:00:50]} Nxc3 {[%emt 0:00:
00]} 10. Qxc3 {[%emt 0:01:41]} dxc4 {[%emt 0:00:10]} 11. Qxc4 {[%emt 0:01:53]}
Bxg2 {[%emt 0:00:10]} 12. Rc1 {[%emt 0:06:07]} Bxh1 {[%emt 0:00:59]} 13. f3 {
[%emt 0:00:54]} O-O {[%emt 0:08:30]} 14. Qxc7 {[%emt 0:01:05]} Qxc7 {[%emt 0:
00:00]} 15. Rxc7 {[%emt 0:00:06]} Rd8 {[%emt 0:02:01]} 16. Be4 {[%emt 0:00:09]}
Na6 {[%emt 0:00:23]} 17. Rc6 {[%emt 0:10:11]} Rac8 {[%emt 0:00:25]} 18. Rxc8 {
[%emt 0:00:27]} Rxc8 {[%emt 0:00:02]} 19. Bb7 {[%emt 0:00:07]} Rc1+ {[%emt 0:
00:00]} 20. Kf2 {[%emt 0:00:24]} Nc7 {[%emt 0:00:36]} 21. Ne2 {[%emt 0:01:07]}
Rc2 {[%emt 0:00:46]} 22. b3 {[%emt 0:00:21]} Nd5 {[%emt 0:00:47]} 23. Bxd5 {
[%emt 0:02:03]} exd5 {[%emt 0:02:20]} 24. a4 {[%emt 0:08:52]} f5 {[%emt 0:00:
00]} 25. b4 {[%emt 0:01:35]} g5 {[%emt 0:00:06]} 26. h3 {[%emt 0:01:33]} h5 {
[%emt 0:00:02]} 27. b5 {[%emt 0:00:31]} g4 {[%emt 0:00:21]} 28. hxg4 {[%emt 0:
00:00]} hxg4 {[%emt 0:00:08]} 29. Kg1 {[%emt 0:00:27]} Rxe2 {[%emt 0:01:32]}
30. Kxh1 {[%emt 0:00:17]} gxf3 {[%emt 0:00:13]} 31. Kg1 {[%emt 0:00:18]} Rxe3 {
[%emt 0:00:19]} 32. Kf1 {[%emt 0:00:43]} Rd3 {[%emt 0:00:35]} 33. Kf2 {[%emt 0:
00:00]} Rxd4 {[%emt 0:00:37]} 34. Kxf3 {[%emt 0:00:09]} Rxa4 {[%emt 0:00:07]}
35. Ke3 {[%emt 0:00:22]} Rb4 {[%emt 0:00:13]} 36. Kf3 {[%emt 0:00:35]} d4 {
[%emt 0:00:18]} 37. Ke2 {[%emt 0:01:09]} f4 {[%emt 0:00:12]} 38. Ke1 {[%emt 0:
00:00]} f3 {[%emt 0:00:12]} 39. Kf2 {[%emt 0:00:34]} Rb3 {[%emt 0:00:22]} 40.
Kg3 {[%emt 0:00:22]} Rxb5 {[%emt 0:00:37]} 41. Kxf3 {[%emt 0:30:02]} d3 {
[%emt 0:30:12]} 42. Ke3 {[%emt 0:00:04]} Rd5 {[%emt 0:00:18]} 43. Kd2 {[%emt 0:
00:00]} a5 {[%emt 0:00:08]} 44. Kc3 {[%emt 0:00:10]} d2 {[%emt 0:00:12]} 45.
Kc4 {[%emt 0:00:29]} d1=Q {[%emt 0:00:36]} 46. Kc3 {[%emt 0:00:10]} Qd2+ {
[%emt 0:00:12]} 47. Kb3 {[%emt 0:00:14]} Rc5 {[%emt 0:02:11]} 48. Ka3 {[%emt 0:
00:00]} Qb4+ {[%emt 0:02:36]} 49. Ka2 {[%emt 0:00:15]} Rc2+ {[%emt 0:01:03]}
50. Ka1 {[%emt 0:00:09]} Qb2# {[%emt 0:00:05]} 0-1

[Event "44th Chess Olympiad Women 2022"]
[Site "Chennai"]
[Date "2022.08.08"]
[Round "10.65"]
[White "Abigail Karyah"]
[Black "Sara, Gadalla Karar"]
[Result "1-0"]
[WhiteElo "1455"]
[BlackElo "1433"]
[Annotator "NA RC"]
[PlyCount "77"]
[EventDate "2022.??.??"]
[TimeControl "60"]

1. e4 {[%emt 0:00:03]} c5 {[%emt 0:00:08]} 2. Nf3 {[%emt 0:00:07]} Nc6 {
[%emt 0:00:07]} 3. d4 {[%emt 0:00:22]} cxd4 {[%emt 0:00:03]} 4. Nxd4 {[%emt 0:
00:00]} g6 {[%emt 0:00:05]} 5. Nc3 {[%emt 0:00:24]} Bg7 {[%emt 0:00:21]} 6. Be3
{[%emt 0:00:08]} Nf6 {[%emt 0:00:50]} 7. Be2 {[%emt 0:00:06]} O-O {[%emt 0:00:
00]} 8. O-O {[%emt 0:00:06]} d5 {[%emt 0:01:51]} 9. exd5 {[%emt 0:00:42]} Nb4 {
[%emt 0:00:21]} 10. Qd2 {[%emt 0:05:42]} Nbxd5 {[%emt 0:00:23]} 11. Nxd5 {
[%emt 0:02:55]} Qxd5 {[%emt 0:02:15]} 12. Bf3 {[%emt 0:05:18]} Ne4 {[%emt 0:00:
00]} 13. Qb4 {[%emt 0:02:40]} Re8 {[%emt 0:02:50]} 14. Nb5 {[%emt 0:01:55]} Bf5
{[%emt 0:09:11]} 15. Nc7 {[%emt 0:01:35]} Qc6 {[%emt 0:01:05]} 16. Nxa8 {
[%emt 0:03:04]} Rxa8 {[%emt 0:00:15]} 17. c3 {[%emt 0:00:49]} e6 {[%emt 0:00:
00]} 18. h3 {[%emt 0:04:45]} a5 {[%emt 0:04:58]} 19. Qb3 {[%emt 0:01:40]} e5 {
[%emt 0:00:27]} 20. g4 {[%emt 0:08:08]} Be6 {[%emt 0:00:38]} 21. Qc2 {[%emt 0:
00:00]} f5 {[%emt 0:07:32]} 22. Bxe4 {[%emt 0:01:22]} fxe4 {[%emt 0:04:01]} 23.
Rac1 {[%emt 0:00:30]} b5 {[%emt 0:06:11]} 24. Rfd1 {[%emt 0:03:39]} a4 {
[%emt 0:01:39]} 25. b3 {[%emt 0:02:17]} a3 {[%emt 0:04:14]} 26. Qe2 {[%emt 0:
00:00]} Rc8 {[%emt 0:01:18]} 27. Rc2 {[%emt 0:00:24]} Qe8 {[%emt 0:07:12]} 28.
Bc1 {[%emt 0:02:51]} b4 {[%emt 0:10:29]} 29. cxb4 {[%emt 0:02:14]} Rxc2 {
[%emt 0:00:10]} 30. Qxc2 {[%emt 0:00:04]} Qa8 {[%emt 0:00:25]} 31. Qc7 {
[%emt 0:00:36]} Bd5 {[%emt 0:06:28]} 32. b5 {[%emt 0:00:33]} Qb7 {[%emt 0:00:
00]} 33. Qxb7 {[%emt 0:00:10]} Bxb7 {[%emt 0:00:02]} 34. Rd8+ {[%emt 0:00:07]}
Kf7 {[%emt 0:07:11]} 35. Rd7+ {[%emt 0:00:07]} Ke8 {[%emt 0:03:03]} 36. Rxg7 {
[%emt 0:00:08]} Bd5 {[%emt 0:00:51]} 37. Bg5 {[%emt 0:00:27]} Kf8 {[%emt 0:00:
00]} 38. Rd7 {[%emt 0:00:15]} Be6 {[%emt 0:00:00]} 39. b6 {[%emt 0:00:00]} 1-0

[Event "44th Chess Olympiad Women 2022"]
[Site "Chennai"]
[Date "2022.08.08"]
[Round "10.67"]
[White "Almusawi, Maram"]
[Black "Marochkina, Nadezhda Valerevna"]
[Result "0-1"]
[WhiteElo "1349"]
[BlackElo "1687"]
[Annotator "NA RC"]
[PlyCount "74"]
[EventDate "2022.??.??"]
[TimeControl "60"]

1. d4 {[%emt 0:00:04]} d5 {[%emt 0:00:05]} 2. Nf3 {[%emt 0:00:21]} Bf5 {
[%emt 0:00:31]} 3. e3 {[%emt 0:00:52]} e6 {[%emt 0:00:15]} 4. Bd3 {[%emt 0:00:
00]} Bxd3 {[%emt 0:00:27]} 5. Qxd3 {[%emt 0:00:10]} Nf6 {[%emt 0:00:14]} 6.
Qb5+ {[%emt 0:00:51]} Nbd7 {[%emt 0:02:45]} 7. Qxb7 {[%emt 0:00:38]} Bd6 {
[%emt 0:01:08]} 8. Qb3 {[%emt 0:02:51]} O-O {[%emt 0:00:17]} 9. O-O {[%emt 0:
00:00]} c5 {[%emt 0:00:24]} 10. c3 {[%emt 0:01:01]} a5 {[%emt 0:00:56]} 11. Re1
{[%emt 0:01:49]} Qc7 {[%emt 0:04:00]} 12. Nbd2 {[%emt 0:02:01]} a4 {[%emt 0:00:
00]} 13. Qc2 {[%emt 0:01:12]} Rfe8 {[%emt 0:05:43]} 14. h3 {[%emt 0:03:38]}
cxd4 {[%emt 0:10:30]} 15. Nxd4 {[%emt 0:01:06]} Reb8 {[%emt 0:01:36]} 16. Qd3 {
[%emt 0:06:22]} Nc5 {[%emt 0:03:52]} 17. Qe2 {[%emt 0:01:08]} Qb6 {[%emt 0:00:
00]} 18. c4 {[%emt 0:06:37]} Nce4 {[%emt 0:02:47]} 19. Rb1 {[%emt 0:11:24]} Bc5
{[%emt 0:06:52]} 20. Qd3 {[%emt 0:05:55]} Rd8 {[%emt 0:06:00]} 21. N2f3 {
[%emt 0:02:20]} dxc4 {[%emt 0:08:21]} 22. Qxc4 {[%emt 0:01:40]} a3 {[%emt 0:00:
00]} 23. b4 {[%emt 0:04:13]} Bxd4 {[%emt 0:01:30]} 24. Nxd4 {[%emt 0:00:44]}
Rdc8 {[%emt 0:00:43]} 25. Qe2 {[%emt 0:02:25]} Nc3 {[%emt 0:00:29]} 26. Qd3 {
[%emt 0:02:35]} Nxb1 {[%emt 0:00:11]} 27. Qxb1 {[%emt 0:00:02]} Nd5 {[%emt 0:
00:00]} 28. Bd2 {[%emt 0:03:46]} Rab8 {[%emt 0:01:41]} 29. b5 {[%emt 0:00:50]}
e5 {[%emt 0:03:16]} 30. Nc6 {[%emt 0:03:51]} Rxc6 {[%emt 0:00:29]} 31. Qd3 {
[%emt 0:03:53]} Qxb5 {[%emt 0:00:16]} 32. Qe4 {[%emt 0:01:52]} Nc3 {[%emt 0:00:
00]} 33. Qf3 {[%emt 0:01:35]} Nxa2 {[%emt 0:00:41]} 34. Ra1 {[%emt 0:02:23]}
Rc2 {[%emt 0:00:21]} 35. Qd1 {[%emt 0:00:40]} Qb2 {[%emt 0:00:19]} 36. Be1 {
[%emt 0:02:00]} Rc1 {[%emt 0:01:21]} 37. Qd6 {[%emt 0:00:56]} Rxa1 {[%emt 0:00:
00]} 0-1

[Event "44th Chess Olympiad Women 2022"]
[Site "Chennai"]
[Date "2022.08.08"]
[Round "10.67"]
[White "Sy Mame, Binta"]
[Black "Ahmed, Najla"]
[Result "0-1"]
[WhiteElo "1256"]
[BlackElo "1176"]
[Annotator "NA RC"]
[PlyCount "59"]
[EventDate "2022.??.??"]
[TimeControl "60"]

1. e4 {[%emt 0:00:13]} c6 {[%emt 0:00:06]} 2. Nc3 {[%emt 0:00:53]} d5 {[%emt 0:
00:00]} 3. exd5 {[%emt 0:01:58]} cxd5 {[%emt 0:00:12]} 4. d4 {[%emt 0:00:06]}
Nf6 {[%emt 0:01:23]} 5. Nf3 {[%emt 0:00:23]} Nc6 {[%emt 0:01:29]} 6. Be3 {
[%emt 0:01:22]} Bf5 {[%emt 0:01:13]} 7. Bb5 {[%emt 0:01:36]} e6 {[%emt 0:02:29]
} 8. O-O {[%emt 0:00:54]} a6 {[%emt 0:01:13]} 9. Bxc6+ {[%emt 0:00:04]} bxc6 {
[%emt 0:00:13]} 10. Ne5 {[%emt 0:03:14]} Rc8 {[%emt 0:07:04]} 11. Ne2 {[%emt 0:
00:00]} Bd6 {[%emt 0:01:33]} 12. Nf3 {[%emt 0:04:48]} Ne4 {[%emt 0:06:03]} 13.
c3 {[%emt 0:03:04]} Qf6 {[%emt 0:10:36]} 14. Ng3 {[%emt 0:11:50]} Bg4 {[%emt 0:
00:00]} 15. Qe2 {[%emt 0:07:43]} Ra8 {[%emt 0:06:21]} 16. Bc1 {[%emt 0:06:39]}
Bxf3 {[%emt 0:06:16]} 17. gxf3 {[%emt 0:01:04]} Ng5 {[%emt 0:00:31]} 18. Bxg5 {
[%emt 0:01:29]} Qxg5 {[%emt 0:00:08]} 19. Kh1 {[%emt 0:00:51]} h5 {[%emt 0:00:
00]} 20. Rg1 {[%emt 0:00:06]} Qf4 {[%emt 0:00:50]} 21. Qe3 {[%emt 0:01:17]} Qf6
{[%emt 0:02:20]} 22. c4 {[%emt 0:14:23]} h4 {[%emt 0:00:28]} 23. Nf1 {[%emt 0:
00:00]} Rh5 {[%emt 0:00:36]} 24. cxd5 {[%emt 0:02:10]} cxd5 {[%emt 0:00:24]}
25. Qc1 {[%emt 0:00:31]} Qxf3+ {[%emt 0:00:23]} 26. Rg2 {[%emt 0:01:35]} h3 {
[%emt 0:02:33]} 27. Qc6+ {[%emt 0:00:10]} Ke7 {[%emt 0:00:06]} 28. Ne3 {
[%emt 0:01:10]} hxg2+ {[%emt 0:00:19]} 29. Nxg2 {[%emt 0:00:33]} Rxh2+ {
[%emt 0:14:19]} 30. Kg1 {[%emt 0:02:34]} 0-1

[Event "44th Chess Olympiad Women 2022"]
[Site "Chennai"]
[Date "2022.08.08"]
[Round "10.68"]
[White "Sisior, Angelil"]
[Black "Inthavong, Maly"]
[Result "1-0"]
[WhiteElo "1488"]
[BlackElo "1231"]
[Annotator "NA RC"]
[PlyCount "33"]
[EventDate "2022.??.??"]
[TimeControl "60"]

1. e4 {[%emt 0:00:03]} e5 {[%emt 0:00:08]} 2. Bc4 {[%emt 0:00:43]} Nf6 {
[%emt 0:00:37]} 3. d4 {[%emt 0:02:54]} exd4 {[%emt 0:02:17]} 4. Nf3 {[%emt 0:
00:00]} c5 {[%emt 0:00:17]} 5. e5 {[%emt 0:02:47]} Ne4 {[%emt 0:01:17]} 6. Bd5
{[%emt 0:04:31]} f5 {[%emt 0:00:53]} 7. exf6 {[%emt 0:03:12]} Nxf6 {[%emt 0:00:
00]} 8. Bg5 {[%emt 0:01:40]} d6 {[%emt 0:01:01]} 9. O-O {[%emt 0:03:14]} Be7 {
[%emt 0:00:51]} 10. Bxf6 {[%emt 0:07:18]} Bxf6 {[%emt 0:00:29]} 11. Re1+ {
[%emt 0:00:12]} Be7 {[%emt 0:00:40]} 12. Ng5 {[%emt 0:02:42]} Qc7 {[%emt 0:00:
00]} 13. Qh5+ {[%emt 0:06:36]} g6 {[%emt 0:01:12]} 14. Bf7+ {[%emt 0:09:26]}
Kd7 {[%emt 0:01:14]} 15. Bxg6 {[%emt 0:12:23]} Bxg5 {[%emt 0:03:42]} 16. Be8+ {
[%emt 0:02:33]} Kd8 {[%emt 0:06:34]} 17. Qxg5+ {[%emt 0:00:11]} 1-0

[Event "44th Chess Olympiad Women 2022"]
[Site "Chennai"]
[Date "2022.08.08"]
[Round "10.71"]
[White "Callender, Jessica"]
[Black "Gusmao, Maria do Ceu"]
[Result "1-0"]
[WhiteElo "1295"]
[BlackElo "1442"]
[Annotator "NA RC"]
[PlyCount "62"]
[EventDate "2022.??.??"]
[TimeControl "60"]

1. c4 {[%emt 0:00:03]} e6 {[%emt 0:00:53]} 2. d4 {[%emt 0:00:18]} d5 {[%emt 0:
00:00]} 3. cxd5 {[%emt 0:01:48]} exd5 {[%emt 0:00:19]} 4. Nc3 {[%emt 0:00:47]}
Nf6 {[%emt 0:00:56]} 5. g3 {[%emt 0:03:22]} Be7 {[%emt 0:00:28]} 6. Bg2 {
[%emt 0:00:18]} c6 {[%emt 0:06:41]} 7. e4 {[%emt 0:02:03]} O-O {[%emt 0:07:40]}
8. e5 {[%emt 0:03:09]} Ne4 {[%emt 0:05:04]} 9. Nxe4 {[%emt 0:02:19]} dxe4 {
[%emt 0:00:32]} 10. Bxe4 {[%emt 0:02:07]} f5 {[%emt 0:03:12]} 11. Bg2 {[%emt 0:
00:00]} Be6 {[%emt 0:05:13]} 12. Nf3 {[%emt 0:03:37]} g6 {[%emt 0:17:28]} 13.
a3 {[%emt 0:04:44]} Nd7 {[%emt 0:06:55]} 14. h4 {[%emt 0:01:15]} Rc8 {[%emt 0:
00:00]} 15. Bg5 {[%emt 0:07:55]} Bxg5 {[%emt 0:04:06]} 16. Nxg5 {[%emt 0:00:39]
} Qe7 {[%emt 0:01:06]} 17. f4 {[%emt 0:02:10]} h5 {[%emt 0:04:13]} 18. d5 {
[%emt 0:05:43]} cxd5 {[%emt 0:03:59]} 19. Nxe6 {[%emt 0:00:49]} Rfe8 {[%emt 0:
00:00]} 20. Bxd5 {[%emt 0:00:54]} Kh8 {[%emt 0:00:21]} 21. Ng5 {[%emt 0:01:06]}
Nxe5 {[%emt 0:00:46]} 22. fxe5 {[%emt 0:07:25]} Qxe5+ {[%emt 0:01:21]} 23. Kf2
{[%emt 0:03:27]} Qxb2+ {[%emt 0:09:14]} 24. Kg1 {[%emt 0:05:31]} Kg7 {[%emt 0:
00:00]} 25. Rh2 {[%emt 0:00:39]} Qb6+ {[%emt 0:00:02]} 26. Rf2 {[%emt 0:01:59]}
Re5 {[%emt 0:00:23]} 27. Ne6+ {[%emt 0:03:36]} Kf6 {[%emt 0:00:22]} 28. Nf4 {
[%emt 0:05:06]} Rh8 {[%emt 0:01:00]} 29. Rb1 {[%emt 0:00:05]} Qe3 {[%emt 0:00:
00]} 30. Qf3 {[%emt 0:02:18]} Qc5 {[%emt 0:00:48]} 31. Bxb7 {[%emt 0:02:50]}
Re3 {[%emt 0:00:00]} 1-0